Workbook

Sheet Коды
A1: ИТОГОВЫЙ РЕЙТИНГ
A2: A. Высокая: минимум по ⅔ направлений индексы попадают в диапазон 0,7..1, по ⅓ может находиться в диапазоне 0,5..1.
A3: B. Средняя: по всем направлениям индексы попадают в диапазон не ниже 0,4
A4: C. Низкая: не соответствующие категориям A и B
A7: ОЦЕНКА САЙТОВ МИНИСТЕРСТВ | I7: ОЦЕНКА САЙТОВ СЛУЖБ, АГЕНТСТВ И УПРАВЛЕНИЙ
A8: Параметр | B8: Код параметра | C8: Возможные значения | D8: Максимальный результат | I8: Параметр | J8: Код параметра | K8: Возможные значения | L8: Максимальный результат
A9: Наличие контактов пресс-службы | B9: has_press_contacts | C9: 1 - да, 0 - нет | D9: 1 | I9: Наличие контактов пресс-службы | J9: has_press_contacts | K9: 1 - да, 0 - нет | L9: 1
A10: Наличие почтового адреса, по которому можно направлять запросы и обращения | B10: has_snail_mail | C10: 1 - да, 0 - нет | D10: 1 | I10: Наличие почтового адреса, по которому можно направлять запросы и обращения | J10: has_snail_mail | K10: 1 - да, 0 - нет | L10: 1
A11: Наличие электронного адреса для запросов и обращений | B11: has_email | C11: 1 - да, 0 - нет | D11: 1 | I11: Наличие электронного адреса для запросов и обращений | J11: has_email | K11: 1 - да, 0 - нет | L11: 1
A12: Наличие телефона для справок | B12: has_phone | C12: 1 - да, 0 - нет | D12: 1 | I12: Наличие телефона для справок | J12: has_phone | K12: 1 - да, 0 - нет | L12: 1
A13: Наличие функционала поиска по сайту | B13: has_search | C13: 1 - да, 0 - нет | D13: 1 | I13: Наличие функционала поиска по сайту | J13: has_search | K13: 1 - да, 0 - нет | L13: 1
A14: Наличие возможности определить дату и время размещения информации, а также дату и время последнего изменения информации | B14: has_date_info | C14: 1 - да, 0 - нет | D14: 1 | I14: Наличие возможности определить дату и время размещения информации, а также дату и время последнего изменения информации | J14: has_date_info | K14: 1 - да, 0 - нет | L14: 1
A15: Наличие возможности масштабировать (увеличивать и уменьшать) шрифт | B15: has_font_options | C15: 1 - да, 0 - нет | D15: 1 | I15: Наличие возможности масштабировать (увеличивать и уменьшать) шрифт / версии для слабовидящих | J15: has_font_options | K15: 1 - да, 0 - нет | L15: 1
A16: Наличие информации о структуре государственного органа | B16: has_structure_info | C16: 1 - да, 0 - нет | D16: 1 | I16: Наличие информации о структуре ведомства | J16: has_structure_info | K16: 1 - да, 0 - нет | L16: 1
A17: Наличие сведений о полномочиях государственного органа, задачах и функциях структурных подразделений органа | B17: has_functions_info | C17: 1 - да, 0 - нет | D17: 1 | I17: Наличие сведений о полномочиях, задачах и функциях структурных подразделений ведомства | J17: has_functions_info | K17: 1 - да, 0 - нет | L17: 1
A18: Наличие перечня территориальных органов и представительств государственного органа | B18: has_territory_info | C18: 1 - да, 0 - нет | D18: 1 | I18: Наличие перечня территориальных органов и представительств государственного органа | J18: has_territory_info | K18: 1 - да, 0 - нет | L18: 1
A19: Наличие перечня подведомственных организаций | B19: has_children_info | C19: 1 - да, 0 - нет | D19: 1 | I19: Наличие сведений о вышестоящих организациях | J19: has_parents_info | K19: 1 - да, 0 - нет | L19: 1
A20: Наличие сведений о руководителях государственного органа | B20: has_board_info | C20: 1 - да, 0 - нет | D20: 1 | I20: Наличие сведений о подведомственных организациях | J20: has_children_info | K20: 1 - да, 0 - нет | L20: 1
A21: Наличие информации о нормотворческой деятельности государственного органа | B21: has_law_activity_info | C21: 1 - да, 0 - нет | D21: 1 | I21: Наличие сведений о руководителях ведомства | J21: has_board_info | K21: 1 - да, 0 - нет | L21: 1
A22: Наличие информации об участии госоргана в программах | B22: has_programmes_info | C22: 1 - да, 0 - нет | D22: 1 | I22: Наличие информации об итогах деятельности ведомства за определенные периоды | J22: has_results_info | K22: 1 - да, 0 - нет | L22: 1
A23: Наличие информации о проведении проверок | B23: has_control_info | C23: 1 - да, 0 - нет | D23: 1 | I23: Наличие информации о кадровом обеспечении государственного органа (вакансии, конкурсы, приемы на работу) | J23: has_jobs_info | K23: 1 - да, 0 - нет | L23: 1
A24: Наличие статистической информации о деятельности государственного органа | B24: has_activity_stats | C24: 1 - да, 0 - нет | D24: 1 | I24: Наличие информации о работе ведомства с обращениями | J24: has_requests_info | K24: 1 - да, 0 - нет | L24: 1
A25: Наличие информации о кадровом обеспечении государственного органа | B25: has_jobs_info | C25: 1 - да, 0 - нет | D25: 1 | I25: Наличие на сайте информации об информационных системах, базах и реестрах в ведении ведомства | J25: has_db_info | K25: 1 - да, 0 - нет | L25: 1
A26: Наличие информации о работе государственного органа с обращениями | B26: has_requests_info | C26: 1 - да, 0 - нет | D26: 1 | I26: Сколько времени ушло на сбор этой информации по сайту | J26: search_time | K26: 2 - 0-15 минут, 1 - 15-30 минут, 0 - более 30 минут | L26: 2
A27: Наличие на сайте информации об информационных системах, базах и реестрах в ведении госоргана | B27: has_db_info | C27: 1 - да, 0 - нет | D27: 1 | I27: МАКСИМУМ | L27: =SUM(L9:L26) -> 19
A28: Сколько времени ушло на сбор этой информации по сайту | B28: search_time | C28: 2 - 0-15 минут, 1 - 15-30 минут, 0 - более 30 минут | D28: 2
A29: МАКСИМУМ | D29: =SUM(D9:D28) -> 21
A33: ОЦЕНКА РЕАГИРОВАНИЯ НА ИНФОРМАЦИОННЫЕ ЗАПРОСЫ
A34: Срок ответа соблюден по закону (не превышает 30 дней) | B34: 1 – да
B35: 0 – нет
A36: Корректность идентификации запроса | B36: 1 – да (запрос)
B37: 0 – нет (обращение или письмо)
A38: Сколько вопросов раскрыто в ответе | B38: 3 – все три вопроса
B39: 2 – два из трех вопросов
B40: 1 – только один ответ
B41: 0 – нет ответа
A42: Ведется ли раздельная статистика по поступившим запросам и обращениям? | B42: 1 – да
B43: 0 – нет
A44: Максимум | B44: 6
A46: ОЦЕНКА ОТКРЫТОСТИ ФОИВ В РАБОТЕ С ЖУРНАЛИСТАМИ
A48: Доступность контактов | B48: На сайте указаны отдельные контакты пресс-службы/контакты для журналистов | C48: 1 – есть отдельные контакты
C49: 0 – только общие для справок
B50: Персонификация контактов: указано конкретное имя, определена конкретная группа вопросов, указан конкретный номер для связи | C50: 1 – есть
C51: 0 – нет
A52: Процесс взаимодействия | B52: Пришел ли ответ о получении запрос | C52: 1 – есть
C53: 0 – нет
B54: Для связи с журналистом использовались формальные (общая почта, формальные ответы, бланки и тд) или неформальные (мессенджеры, звонки, персональные почты сотрудников) | C54: 2 – использовались формальные и неформальные каналы
C55: 1 – использовались только формальные каналы
C56: 0 – нет ответа вообще
A57: Качество ответа | B57: Ответ/отказ предоставлен в оговоренный/установленный законом срок | C57: 1 – да
C58: 0 – нет
B59: Обоснованность, глубина и содержательность ответа | C59: Содержательный полный ответ — 2
C60: Неполный ответ/обоснованный отказ — 1
C61: Формальный ответ/отписка— 0
A62: МАКСИМУМ | C62: 8

Sheet Министертва Рейтинг
A1: Министерство | B1: Rate site | C1: Rate 8 FZ | D1: Rate jour | E1: Rate Opennes
A2: МВД России | B2: 0.952 | C2: 0.5 | D2: 0.5 | E2: B
A3: МЧС России | B3: 0.905 | C3: 0 | D3: 0.75 | E3: A
A4: МИД России | B4: 1 | C4: 0.666666667 | D4: 0.375 | E4: C
A5: Минобороны России | B5: 0.714 | C5: 0.333333333 | D5: 0.375 | E5: С
A6: Минюст России | B6: 0.905 | C6: 0 | D6: 0.708 | E6: С
A7: Минздрав России | B7: 0.952 | C7: 0 | D7: 0.25 | E7: С
A8: Минкультуры России | B8: 1 | C8: 0.5 | D8: 0.583 | E8: В
A9: Минобрнауки России | B9: 0.857 | C9: 0.333333333 | D9: 0.292 | E9: С
A10: Минприроды России | B10: 0.81 | C10: 0.5 | D10: 0.625 | E10: В
A11: Минпромторг России | B11: 0.952 | C11: 0 | D11: 0.458 | E11: С
A12: Минпросвещения России | B12: 0.952 | C12: 0.666666667 | D12: 0.333 | E12: С
A13: Минвостокразвития России | B13: 0.905 | C13: 0 | D13: 0.5 | E13: С
A14: Минсельхоз России | B14: 1 | C14: 0 | D14: 0.292 | E14: С
A15: Минспорт России | B15: 0.857 | C15: 0 | D15: 0.333 | E15: С
A16: Минстрой России | B16: 0.905 | C16: 0.666666667 | D16: 0.25 | E16: C
A17: Минтранс России | B17: 0.857 | C17: 0.666666667 | D17: 0.625 | E17: В
A18: Минтруд России | B18: 0.905 | C18: 0 | D18: 0.542 | E18: С
A19: Минфин России | B19: 0.857 | C19: 0.833333333 | D19: 0.292 | E19: С
A20: Минкомсвязь России | B20: 0.81 | C20: 0 | D20: 0.333 | E20: С
A21: Минэкономразвития России | B21: 0.857 | C21: 0.666666667 | D21: 0.125 | E21: С
A22: Минэнерго России | B22: 0.857 | C22: 1 | D22: 0.667 | E22: A

Sheet Агент. Служ. Упр. рейтинг
A1: Ведомство | B1: Rate site | C1: Rate 8 FZ | D1: Rate jour | E1: Rate Opennes
A2: Росгидромет | B2: 0.895 | C2: 0.666666667 | D2: 0.333 | E2: C
A3: Росприроднадзор | B3: 0.895 | C3: 0 | D3: 0.458 | E3: C
A4: Росводресурсы | B4: 0.947 | C4: 0 | D4: 0.375 | E4: C
A5: Рослесхоз | B5: 0.842 | C5: 0 | D5: 0.417 | E5: C
A6: Роснедра | B6: 0.842 | C6: 0 | D6: 0.208 | E6: C
A7: Россотрудничество | B7: 0.842 | C7: 0 | D7: 0.125 | E7: C
A8: Росстандарт | B8: 0.947 | C8: 0 | D8: 0.333 | E8: C
A9: Россельхознадзор | B9: 0.632 | C9: 0.833333333 | D9: 0.292 | E9: C
A10: Росрыболовство | B10: 0.895 | C10: 0 | D10: 0.083 | E10: C
A11: Ространснадзор | B11: 0.842 | C11: 0.833333333 | D11: 0.542 | E11: A
A12: Росавиация | B12: 0.895 | C12: 0 | D12: 0.292 | E12: C
A13: Росавтодор | B13: 1 | C13: 0.666666667 | D13: 0.625 | E13: B
A14: Росжелдор | B14: 0.842 | C14: 0 | D14: 0.083 | E14: C
A15: Росморречфлот | B15: 0.895 | C15: 0.333333333 | D15: 0.417 | E15: C
A16: Роструд | B16: 0.842 | C16: 0 | D16: 0.333 | E16: C
A17: ФНС России | B17: 0.947 | C17: 0.5 | D17: 0.292 | E17: C
A18: Федеральная пробирная палата | B18: 0.579 | C18: - | D18: 0.375 | E18: C
A19: Росалкогольрегулирование | B19: 0.947 | C19: 0.5 | D19: 0.542 | E19: B
A20: ФТС России | B20: 0.947 | C20: 0.5 | D20: 0.333 | E20: C
A21: Казначейство России | B21: 0.895 | C21: 0 | D21: 0.417 | E21: C
A22: Росимущество | B22: 1 | C22: 0 | D22: 0.542 | E22: C
A23: Роскомнадзор | B23: 0.947 | C23: 0.833333333 | D23: 0.375 | E23: B
A24: Роспечать | B24: 0.895 | C24: 0 | D24: 0.583 | E24: C
A25: Россвязь | B25: 0.947 | C25: 0.5 | D25: 0.417 | E25: B
A26: Росаккредитация | B26: 0.842 | C26: 0.5 | D26: 0.625 | E26: B
A27: Росстат | B27: 0.842 | C27: 1 | D27: 0.708 | E27: A
A28: Роспатент | B28: 0.842 | C28: 0 | D28: 0.25 | E28: C
A29: Ростуризм | B29: 0.895 | C29: 0 | D29: 0.125 | E29: C
A30: СВР России | B30: 0.737 | C30: - | D30: 0.458 | E30: C
A31: ФСБ России | B31: 0.526 | C31: - | D31: 0.458 | E31: C
A32: Росгвардия | B32: 0.895 | C32: - | D32: 0.583 | E32: C
A33: ФСО России | B33: 0.579 | C33: - | D33: 0.5 | E33: C
A34: Росфинмониторинг | B34: 0.842 | C34: 0.833333333 | D34: 0.25 | E34: B
A35: Росархив | B35: 0.895 | C35: 0 | D35: 0.292 | E35: C
A36: Главное управление специальных программ Президента Российской Федерации (ГУСП) | B36: 0.684 | C36: 0.666666667 | D36: 0.25 | E36: C
A37: Управление делами Президента Российской Федерации | B37: 0.789 | C37: 0 | D37: 0.375 | E37: C
A38: Государственная фельдъегерская служба Российской Федерации (ГФС России) | B38: 0.842 | C38: 0 | D38: 0.333 | E38: C
A39: ФАС России | B39: 0.842 | C39: 0 | D39: 0.417 | E39: C
A40: Росреестр | B40: 0.895 | C40: 0.666666667 | D40: 0.208 | E40: C
A41: Роспотребнадзор | B41: 0.895 | C41: 0 | D41: 0.083 | E41: C
A42: Росздравнадзор | B42: 0.947 | C42: 0 | D42: 0.25 | E42: C
A43: Рособрнадзор | B43: 0.895 | C43: 1 | D43: 0.542 | E43: A
A44: Ростехнадзор | B44: 0.895 | C44: 0 | D44: 0.292 | E44: C
A45: Росрезерв | B45: 0.947 | C45: 0.833333333 | D45: 0.542 | E45: A
A46: ФМБА России | B46: 0.789 | C46: 0 | D46: 0.542 | E46: C
A47: Росмолодёжь | B47: 0.947 | C47: 0.833333333 | D47: 0.667 | E47: A
A48: ФАДН России | B48: 0.842 | C48: 0 | D48: 0.25 | E48: C
A49: ФСВТС России | B49: 0.737 | C49: 0 | D49: 0.292 | E49: C
A50: ФСТЭК России | B50: 0.895 | C50: 0 | D50: 0.292 | E50: C
A51: ФСИН России | B51: 0.842 | C51: - | D51: 0.208 | E51: C
A52: Федеральная служба судебных приставов (ФССП России) | B52: 0.895 | C52: 0.666666667 | D52: 0.75 | E52: A

Sheet Министертва сайт
A1: Ведомство | B1: Ссылка на сайт | C1: has_press_contacts | D1: has_snail_mail | E1: has_email | F1: has_phone | G1: has_search | H1: has_date_info | I1: has_font_options | J1: has_structure_info | K1: has_functions_info | L1: has_territory_info | M1: has_children_info | N1: has_board_info | O1: has_law_activity_info | P1: has_programmes_info | Q1: has_control_info | R1: has_activity_stats | S1: has_jobs_info | T1: has_requests_info | U1: has_db_info | V1: search_time | W1: total | X1: delta (2020-2019) | Y1: Max | Z1: Rate (tot/max)
A2: МВД России | B2: http://www.mvd.ru | C2: 1 | D2: 1 | E2: 1 | F2: 1 | G2: 1 | H2: 1 | I2: 1 | J2: 1 | K2: 1 | L2: 1 | M2: 1 | N2: 1 | O2: 1 | P2: 1 | Q2: 1 | R2: 1 | S2: 1 | T2: 1 | U2: 1 | V2: 1 | W2: =SUM(C2:V2) -> 20 | X2: =W2-'[1]Мин сайты 19 '!X2 -> 2 | Y2: 21 | Z2: =W2/21 -> 0.9523809524
A3: МЧС России | B3: https://www.mchs.gov.ru/ | C3: 1 | D3: 1 | E3: 1 | F3: 1 | G3: 1 | H3: 1 | I3: 1 | J3: 1 | K3: 1 | L3: 1 | M3: 1 | N3: 1 | O3: 1 | P3: 1 | Q3: 1 | R3: 1 | S3: 1 | T3: 1 | U3: 1 | V3: 0 | W3: =SUM(C3:V3) -> 19 | X3: =W3-'[1]Мин сайты 19 '!X23 -> 0 | Y3: 21 | Z3: =W3/21 -> 0.9047619048
A4: МИД России | B4: http://www.mid.ru/ | C4: 1 | D4: 1 | E4: 1 | F4: 1 | G4: 1 | H4: 1 | I4: 1 | J4: 1 | K4: 1 | L4: 1 | M4: 1 | N4: 1 | O4: 1 | P4: 1 | Q4: 1 | R4: 1 | S4: 1 | T4: 1 | U4: 1 | V4: 2 | W4: 21 | X4: =W4-'[1]Мин сайты 19 '!X3 -> 4 | Y4: 21 | Z4: 1
A5: Минобороны России | B5: http://mil.ru/ | C5: 1 | D5: 1 | E5: 0 | F5: 1 | G5: 1 | H5: 1 | I5: 1 | J5: 1 | K5: 1 | L5: 0 | M5: 1 | N5: 1 | O5: 1 | P5: 0 | Q5: 0 | R5: 1 | S5: 1 | T5: 1 | U5: 1 | V5: 0 | W5: 15 | X5: =W5-'[1]Мин сайты 19 '!X9 -> 2 | Y5: 21 | Z5: 0.7142857143
A6: Минюст России | B6: https://minjust.ru/ | C6: 1 | D6: 1 | E6: 0 | F6: 1 | G6: 1 | H6: 0 | I6: 1 | J6: 1 | K6: 1 | L6: 1 | M6: 1 | N6: 1 | O6: 1 | P6: 1 | Q6: 1 | R6: 1 | S6: 1 | T6: 1 | U6: 1 | V6: 2 | W6: 19 | X6: =W6-'[1]Мин сайты 19 '!X22 -> 1 | Y6: 21 | Z6: 0.9047619048
A7: Минздрав России | B7: https://www.rosminzdrav.ru/ | C7: 1 | D7: 1 | E7: 1 | F7: 1 | G7: 1 | H7: 1 | I7: 1 | J7: 1 | K7: 1 | L7: 1 | M7: 1 | N7: 1 | O7: 1 | P7: 1 | Q7: 1 | R7: 1 | S7: 1 | T7: 1 | U7: 1 | V7: 1 | W7: 20 | X7: =W7-'[1]Мин сайты 19 '!X5 -> 1 | Y7: 21 | Z7: 0.9523809524
A8: Минкультуры России | B8: http://www.mkrf.ru/ | C8: 1 | D8: 1 | E8: 1 | F8: 1 | G8: 1 | H8: 1 | I8: 1 | J8: 1 | K8: 1 | L8: 1 | M8: 1 | N8: 1 | O8: 1 | P8: 1 | Q8: 1 | R8: 1 | S8: 1 | T8: 1 | U8: 1 | V8: 2 | W8: 21 | X8: =W8-'[1]Мин сайты 19 '!X8 -> 0 | Y8: 21 | Z8: 1
A9: Минобрнауки России | B9: https://www.minobrnauki.gov.ru/ | C9: 1 | D9: 1 | E9: 1 | F9: 1 | G9: 1 | H9: 1 | I9: 1 | J9: 1 | K9: 0 | L9: 1 | M9: 1 | N9: 1 | O9: 1 | P9: 1 | Q9: 1 | R9: 0 | S9: 1 | T9: 1 | U9: 1 | V9: 1 | W9: 18 | X9: =W9-'[1]Мин сайты 19 '!X10 -> 8 | Y9: 21 | Z9: 0.8571428571
A10: Минприроды России | B10: http://www.mnr.gov.ru/ | C10: 1 | D10: 1 | E10: 1 | F10: 1 | G10: 1 | H10: 1 | I10: 1 | J10: 1 | K10: 1 | L10: 0 | M10: 0 | N10: 1 | O10: 1 | P10: 1 | Q10: 1 | R10: 0 | S10: 1 | T10: 1 | U10: 1 | V10: 1 | W10: 17 | X10: =W10-'[1]Мин сайты 19 '!X11 -> 3 | Y10: 21 | Z10: 0.8095238095
A11: Минпромторг России | B11: http://minpromtorg.gov.ru/ | C11: 1 | D11: 1 | E11: 1 | F11: 1 | G11: 1 | H11: 0 | I11: 1 | J11: 1 | K11: 1 | L11: 1 | M11: 1 | N11: 1 | O11: 1 | P11: 1 | Q11: 1 | R11: 1 | S11: 1 | T11: 1 | U11: 1 | V11: 2 | W11: 20 | X11: =W11-'[1]Мин сайты 19 '!X12 -> 0 | Y11: 21 | Z11: 0.9523809524
A12: Минпросвещения России | B12: https://edu.gov.ru/ | C12: 1 | D12: 1 | E12: 1 | F12: 1 | G12: 1 | H12: 1 | I12: 1 | J12: 1 | K12: 1 | L12: 1 | M12: 1 | N12: 1 | O12: 1 | P12: 1 | Q12: 1 | R12: 1 | S12: 1 | T12: 1 | U12: 1 | V12: 1 | W12: 20 | X12: =W12-'[1]Мин сайты 19 '!X13 -> 7 | Y12: 21 | Z12: 0.9523809524
A13: Минвостокразвития России | B13: https://minvr.ru/ | C13: 1 | D13: 1 | E13: 1 | F13: 1 | G13: 1 | H13: 1 | I13: 1 | J13: 1 | K13: 1 | L13: 0 | M13: 1 | N13: 1 | O13: 1 | P13: 1 | Q13: 1 | R13: 1 | S13: 1 | T13: 1 | U13: 1 | V13: 1 | W13: 19 | X13: =W13-'[1]Мин сайты 19 '!X4 -> 2 | Y13: 21 | Z13: 0.9047619048
A14: Минсельхоз России | B14: http://mcx.ru/ | C14: 1 | D14: 1 | E14: 1 | F14: 1 | G14: 1 | H14: 1 | I14: 1 | J14: 1 | K14: 1 | L14: 1 | M14: 1 | N14: 1 | O14: 1 | P14: 1 | Q14: 1 | R14: 1 | S14: 1 | T14: 1 | U14: 1 | V14: 2 | W14: 21 | X14: =W14-'[1]Мин сайты 19 '!X14 -> 2 | Y14: 21 | Z14: 1
A15: Минспорт России | B15: http://www.minsport.gov.ru/ | C15: 1 | D15: 1 | E15: 1 | F15: 1 | G15: 1 | H15: 1 | I15: 1 | J15: 1 | K15: 1 | L15: 1 | M15: 1 | N15: 1 | O15: 1 | P15: 1 | Q15: 1 | R15: 1 | S15: 1 | T15: 0 | U15: 0 | V15: 1 | W15: 18 | X15: =W15-'[1]Мин сайты 19 '!X15 -> 2 | Y15: 21 | Z15: 0.8571428571
A16: Минстрой России | B16: https://www.minstroyrf.ru/ | C16: 1 | D16: 1 | E16: 1 | F16: 1 | G16: 1 | H16: 1 | I16: 1 | J16: 1 | K16: 1 | L16: 0 | M16: 1 | N16: 1 | O16: 1 | P16: 1 | Q16: 1 | R16: 1 | S16: 1 | T16: 1 | U16: 1 | V16: 1 | W16: 19 | X16: =W16-'[1]Мин сайты 19 '!X16 -> 1 | Y16: 21 | Z16: 0.9047619048
A17: Минтранс России | B17: https://www.mintrans.ru/ | C17: 1 | D17: 1 | E17: 1 | F17: 1 | G17: 1 | H17: 1 | I17: 1 | J17: 1 | K17: 1 | L17: 0 | M17: 1 | N17: 1 | O17: 1 | P17: 1 | Q17: 1 | R17: 0 | S17: 1 | T17: 1 | U17: 1 | V17: 1 | W17: 18 | X17: =W17-'[1]Мин сайты 19 '!X17 -> 0 | Y17: 21 | Z17: 0.8571428571
A18: Минтруд России | B18: https://rosmintrud.ru/ | C18: 1 | D18: 1 | E18: 1 | F18: 1 | G18: 1 | H18: 1 | I18: 1 | J18: 1 | K18: 1 | L18: 1 | M18: 1 | N18: 1 | O18: 1 | P18: 1 | Q18: 1 | R18: 0 | S18: 1 | T18: 1 | U18: 1 | V18: 1 | W18: 19 | X18: =W18-'[1]Мин сайты 19 '!X18 -> 0 | Y18: 21 | Z18: 0.9047619048
A19: Минфин России | B19: https://www.minfin.ru/ru/ | C19: 1 | D19: 1 | E19: 0 | F19: 1 | G19: 1 | H19: 1 | I19: 1 | J19: 1 | K19: 1 | L19: 0 | M19: 1 | N19: 1 | O19: 1 | P19: 1 | Q19: 1 | R19: 1 | S19: 1 | T19: 1 | U19: 1 | V19: 1 | W19: =SUM(C19:V19) -> 18 | X19: =W19-'[1]Мин сайты 19 '!X19 -> -1 | Y19: 21 | Z19: 0.8571428571
A20: Минкомсвязь России | B20: https://digital.gov.ru/ru/ | C20: 1 | D20: 1 | E20: 1 | F20: 1 | G20: 1 | H20: 0 | I20: 0 | J20: 1 | K20: 1 | L20: 0 | M20: 1 | N20: 1 | O20: 1 | P20: 1 | Q20: 1 | R20: 1 | S20: 1 | T20: 1 | U20: 1 | V20: 1 | W20: 17 | X20: =W20-'[1]Мин сайты 19 '!X7 -> 2 | Y20: 21 | Z20: 0.8095238095
A21: Минэкономразвития России | B21: https://www.economy.gov.ru/ | C21: 1 | D21: 1 | E21: 1 | F21: 1 | G21: 1 | H21: 1 | I21: 1 | J21: 1 | K21: 1 | L21: 0 | M21: 1 | N21: 1 | O21: 1 | P21: 1 | Q21: 0 | R21: 1 | S21: 1 | T21: 1 | U21: 1 | V21: 1 | W21: 18 | X21: =W21-'[1]Мин сайты 19 '!X20 -> 4 | Y21: 21 | Z21: 0.8571428571
A22: Минэнерго России | B22: https://minenergo.gov.ru/ | C22: 1 | D22: 1 | E22: 1 | F22: 1 | G22: 1 | H22: 0 | I22: 1 | J22: 1 | K22: 1 | L22: 0 | M22: 1 | N22: 1 | O22: 1 | P22: 1 | Q22: 1 | R22: 1 | S22: 1 | T22: 1 | U22: 1 | V22: 1 | W22: 18 | X22: =W22-'[1]Мин сайты 19 '!X21 -> -1 | Y22: 21 | Z22: 0.8571428571

Sheet Агент. Служ. Упр. сайт
A1: Ведомство | B1: Ссылка на сайт | C1: has_press_contacts | D1: has_snail_mail | E1: has_email | F1: has_phone | G1: has_search | H1: has_date_info | I1: has_font_options | J1: has_structure_info | K1: has_functions_info | L1: has_territory_info | M1: has_parents_info | N1: has_children_info | O1: has_board_info | P1: has_results_info | Q1: has_jobs_info | R1: has_requests_info | S1: has_db_info | T1: search_time | U1: Total | V1: delta (2020-2019) | W1: Max | X1: Rate (tot/max)
A2: Росгидромет | B2: http://www.meteorf.ru/ | C2: 1 | D2: 1 | E2: 1 | F2: 1 | G2: 1 | H2: 0 | I2: 1 | J2: 1 | K2: 1 | L2: 1 | M2: 1 | N2: 1 | O2: 1 | P2: 1 | Q2: 1 | R2: 1 | S2: 1 | T2: 1 | U2: =SUM(C2:T2) -> 17 | V2: =U2-'[1]Агентства и службы сайты 19'!V12 -> -1 | W2: 19 | X2: =U2/19 -> 0.8947368421
A3: Росприроднадзор | B3: https://rpn.gov.ru/ | C3: 1 | D3: 1 | E3: 0 | F3: 1 | G3: 1 | H3: 1 | I3: 1 | J3: 1 | K3: 1 | L3: 1 | M3: 1 | N3: 1 | O3: 1 | P3: 1 | Q3: 1 | R3: 1 | S3: 1 | T3: 1 | U3: 17 | V3: =U3-'[1]Агентства и службы сайты 19'!V14 -> -1 | W3: 19 | X3: =U3/19 -> 0.8947368421
A4: Росводресурсы | B4: http://voda.mnr.gov.ru/ | C4: 0 | D4: 1 | E4: 1 | F4: 1 | G4: 1 | H4: 1 | I4: 1 | J4: 1 | K4: 1 | L4: 1 | M4: 1 | N4: 1 | O4: 1 | P4: 1 | Q4: 1 | R4: 1 | S4: 1 | T4: 2 | U4: 18 | V4: =U4-'[1]Агентства и службы сайты 19'!V10 -> 2 | W4: 19 | X4: 0.9473684211
A5: Рослесхоз | B5: http://rosleshoz.gov.ru/ | C5: 1 | D5: 1 | E5: 0 | F5: 1 | G5: 1 | H5: 0 | I5: 1 | J5: 1 | K5: 1 | L5: 1 | M5: 1 | N5: 1 | O5: 1 | P5: 1 | Q5: 1 | R5: 1 | S5: 1 | T5: 1 | U5: 16 | V5: =U5-'[1]Агентства и службы сайты 19'!V17 -> -1 | W5: 19 | X5: 0.8421052632
A6: Роснедра | B6: http://www.rosnedra.gov.ru/ | C6: 0 | D6: 1 | E6: 1 | F6: 1 | G6: 1 | H6: 0 | I6: 1 | J6: 1 | K6: 1 | L6: 1 | M6: 1 | N6: 1 | O6: 1 | P6: 1 | Q6: 1 | R6: 1 | S6: 1 | T6: 1 | U6: 16 | V6: =U6-'[1]Агентства и службы сайты 19'!V20 -> 0 | W6: 19 | X6: 0.8421052632
A7: Россотрудничество | B7: http://rs.gov.ru/ru | C7: 1 | D7: 1 | E7: 1 | F7: 1 | G7: 1 | H7: 0 | I7: 1 | J7: 1 | K7: 1 | L7: 1 | M7: 1 | N7: 0 | O7: 1 | P7: 1 | Q7: 1 | R7: 1 | S7: 1 | T7: 1 | U7: 16 | V7: =U7-'[1]Агентства и службы сайты 19'!V31 -> 3 | W7: 19 | X7: 0.8421052632
A8: Росстандарт | B8: https://www.gost.ru/portal/gost | C8: 1 | D8: 1 | E8: 1 | F8: 1 | G8: 1 | H8: 1 | I8: 1 | J8: 1 | K8: 1 | L8: 1 | M8: 1 | N8: 1 | O8: 1 | P8: 1 | Q8: 1 | R8: 1 | S8: 1 | T8: 1 | U8: 18 | V8: =U8-'[1]Агентства и службы сайты 19'!V32 -> 0 | W8: 19 | X8: 0.9473684211
A9: Россельхознадзор | B9: http://www.fsvps.ru/ | C9: 0 | D9: 1 | E9: 1 | F9: 1 | G9: 1 | H9: 0 | I9: 0 | J9: 1 | K9: 1 | L9: 1 | M9: 0 | N9: 1 | O9: 1 | P9: 0 | Q9: 1 | R9: 1 | S9: 1 | T9: 0 | U9: 12 | V9: =U9-'[1]Агентства и службы сайты 19'!V30 -> -2 | W9: 19 | X9: 0.6315789474
A10: Росрыболовство | B10: http://www.fish.gov.ru/ | C10: 1 | D10: 1 | E10: 1 | F10: 1 | G10: 1 | H10: 0 | I10: 1 | J10: 1 | K10: 1 | L10: 1 | M10: 1 | N10: 1 | O10: 1 | P10: 1 | Q10: 1 | R10: 1 | S10: 1 | T10: 1 | U10: 17 | V10: =U10-'[1]Агентства и службы сайты 19'!V28 -> 1 | W10: 19 | X10: 0.8947368421
A11: Ространснадзор | B11: https://rostransnadzor.ru/ | C11: 1 | D11: 1 | E11: 1 | F11: 1 | G11: 1 | H11: 1 | I11: 0 | J11: 1 | K11: 1 | L11: 1 | M11: 1 | N11: 1 | O11: 1 | P11: 0 | Q11: 1 | R11: 1 | S11: 1 | T11: 1 | U11: 16 | V11: =U11-'[1]Агентства и службы сайты 19'!V35 -> -2 | W11: 19 | X11: 0.8421052632
A12: Росавиация | B12: https://favt.ru/ | C12: 1 | D12: 1 | E12: 1 | F12: 1 | G12: 1 | H12: 0 | I12: 1 | J12: 1 | K12: 1 | L12: 1 | M12: 1 | N12: 1 | O12: 1 | P12: 1 | Q12: 1 | R12: 1 | S12: 1 | T12: 1 | U12: 17 | V12: =U12-'[1]Агентства и службы сайты 19'!V5 -> -1 | W12: 19 | X12: 0.8947368421
A13: Росавтодор | B13: https://rosavtodor.ru/ | C13: 1 | D13: 1 | E13: 1 | F13: 1 | G13: 1 | H13: 1 | I13: 1 | J13: 1 | K13: 1 | L13: 1 | M13: 1 | N13: 1 | O13: 1 | P13: 1 | Q13: 1 | R13: 1 | S13: 1 | T13: 2 | U13: 19 | V13: =U13-'[1]Агентства и службы сайты 19'!V6 -> 0 | W13: 19 | X13: 1
A14: Росжелдор | B14: http://www.roszeldor.ru/ | C14: 1 | D14: 1 | E14: 1 | F14: 1 | G14: 1 | H14: 1 | I14: 1 | J14: 1 | K14: 1 | L14: 1 | M14: 1 | N14: 1 | O14: 1 | P14: 0 | Q14: 1 | R14: 0 | S14: 1 | T14: 1 | U14: 16 | V14: =U14-'[1]Агентства и службы сайты 19'!V13 -> -1 | W14: 19 | X14: 0.8421052632
A15: Росморречфлот | B15: http://www.morflot.ru/ | C15: 1 | D15: 1 | E15: 1 | F15: 1 | G15: 1 | H15: 1 | I15: 1 | J15: 1 | K15: 1 | L15: 0 | M15: 1 | N15: 1 | O15: 1 | P15: 1 | Q15: 1 | R15: 1 | S15: 1 | T15: 1 | U15: 17 | V15: =U15-'[1]Агентства и службы сайты 19'!V19 -> 3 | W15: 19 | X15: 0.8947368421
A16: Роструд | B16: https://www.rostrud.ru/ | C16: 1 | D16: 1 | E16: 1 | F16: 1 | G16: 1 | H16: 0 | I16: 1 | J16: 1 | K16: 1 | L16: 1 | M16: 1 | N16: 0 | O16: 1 | P16: 1 | Q16: 1 | R16: 1 | S16: 1 | T16: 1 | U16: 16 | V16: =U16-'[1]Агентства и службы сайты 19'!V36 -> 2 | W16: 19 | X16: 0.8421052632
A17: ФНС России | B17: https://www.nalog.ru/rn77/ | C17: 1 | D17: 1 | E17: 0 | F17: 1 | G17: 1 | H17: 1 | I17: 1 | J17: 1 | K17: 1 | L17: 1 | M17: 1 | N17: 1 | O17: 1 | P17: 1 | Q17: 1 | R17: 1 | S17: 1 | T17: 2 | U17: 18 | V17: =U17-'[1]Агентства и службы сайты 19'!V44 -> 3 | W17: 19 | X17: 0.9473684211
A18: Федеральная пробирная палата | B18: http://www.probpalata.ru/rgpp/ | C18: 1 | D18: 1 | E18: 1 | F18: 1 | G18: 1 | H18: 0 | I18: 0 | J18: 1 | K18: 1 | L18: 1 | M18: 1 | N18: 0 | O18: 1 | P18: 0 | Q18: 0 | R18: 0 | S18: 0 | T18: 1 | U18: 11 | W18: 19 | X18: 0.5789473684
A19: Росалкогольрегулирование | B19: http://fsrar.ru/ | C19: 1 | D19: 1 | E19: 1 | F19: 1 | G19: 1 | H19: 0 | I19: 1 | J19: 1 | K19: 1 | L19: 1 | M19: 1 | N19: 1 | O19: 1 | P19: 1 | Q19: 1 | R19: 1 | S19: 1 | T19: 2 | U19: 18 | V19: =U19-'[1]Агентства и службы сайты 19'!V8 -> 0 | W19: 19 | X19: 0.9473684211
A20: ФТС России | B20: http://customs.ru/ | C20: 1 | D20: 1 | E20: 1 | F20: 1 | G20: 1 | H20: 0 | I20: 1 | J20: 1 | K20: 1 | L20: 1 | M20: 1 | N20: 1 | O20: 1 | P20: 1 | Q20: 1 | R20: 1 | S20: 1 | T20: 2 | U20: 18 | V20: =U20-'[1]Агентства и службы сайты 19'!V51 -> 0 | W20: 19 | X20: 0.9473684211
A21: Казначейство России | B21: http://www.roskazna.ru/ | C21: 1 | D21: 1 | E21: 0 | F21: 1 | G21: 1 | H21: 1 | I21: 1 | J21: 1 | K21: 1 | L21: 1 | M21: 1 | N21: 1 | O21: 1 | P21: 1 | Q21: 1 | R21: 1 | S21: 1 | T21: 1 | U21: 17 | V21: =U21-'[1]Агентства и службы сайты 19'!V4 -> -1 | W21: 19 | X21: 0.8947368421
A22: Росимущество | B22: https://www.rosim.ru/ | C22: 1 | D22: 1 | E22: 1 | F22: 1 | G22: 1 | H22: 1 | I22: 1 | J22: 1 | K22: 1 | L22: 1 | M22: 1 | N22: 1 | O22: 1 | P22: 1 | Q22: 1 | R22: 1 | S22: 1 | T22: 2 | U22: 19 | V22: =U22-'[1]Агентства и службы сайты 19'!V15 -> 0 | W22: 19 | X22: 1
A23: Роскомнадзор | B23: http://rkn.gov.ru/ | C23: 1 | D23: 1 | E23: 1 | F23: 1 | G23: 1 | H23: 1 | I23: 1 | J23: 1 | K23: 1 | L23: 1 | M23: 1 | N23: 1 | O23: 1 | P23: 1 | Q23: 1 | R23: 1 | S23: 1 | T23: 1 | U23: 18 | V23: =U23-'[1]Агентства и службы сайты 19'!V16 -> -1 | W23: 19 | X23: 0.9473684211
A24: Роспечать | B24: http://www.fapmc.ru/rospechat.html | C24: 1 | D24: 1 | E24: 1 | F24: 1 | G24: 1 | H24: 1 | I24: 1 | J24: 1 | K24: 1 | L24: 1 | M24: 1 | N24: 1 | O24: 1 | P24: 1 | Q24: 1 | R24: 1 | S24: 0 | T24: 1 | U24: 17 | V24: =U24-'[1]Агентства и службы сайты 19'!V23 -> -1 | W24: 19 | X24: 0.8947368421
A25: Россвязь | B25: https://rossvyaz.ru/ | C25: 0 | D25: 1 | E25: 1 | F25: 1 | G25: 1 | H25: 1 | I25: 1 | J25: 1 | K25: 1 | L25: 1 | M25: 1 | N25: 1 | O25: 1 | P25: 1 | Q25: 1 | R25: 1 | S25: 1 | T25: 2 | U25: 18 | V25: =U25-'[1]Агентства и службы сайты 19'!V29 -> 0 | W25: 19 | X25: 0.9473684211
A26: Росаккредитация | B26: https://fsa.gov.ru/ | C26: 1 | D26: 1 | E26: 1 | F26: 1 | G26: 1 | H26: 0 | I26: 1 | J26: 1 | K26: 1 | L26: 1 | M26: 1 | N26: 1 | O26: 1 | P26: 1 | Q26: 1 | R26: 0 | S26: 1 | T26: 1 | U26: 16 | V26: =U26-'[1]Агентства и службы сайты 19'!V7 -> -1 | W26: 19 | X26: 0.8421052632
A27: Росстат | B27: https://www.gks.ru/ | C27: 1 | D27: 1 | E27: 1 | F27: 1 | G27: 1 | H27: 0 | I27: 1 | J27: 1 | K27: 1 | L27: 1 | M27: 1 | N27: 1 | O27: 1 | P27: 1 | Q27: 1 | R27: 1 | S27: 1 | T27: 0 | U27: 16 | V27: =U27-'[1]Агентства и службы сайты 19'!V33 -> -1 | W27: 19 | X27: 0.8421052632
A28: Роспатент | B28: https://rupto.ru/ru | C28: 1 | D28: 1 | E28: 1 | F28: 1 | G28: 1 | H28: 0 | I28: 1 | J28: 1 | K28: 1 | L28: 0 | M28: 1 | N28: 1 | O28: 1 | P28: 1 | Q28: 1 | R28: 1 | S28: 1 | T28: 1 | U28: 16 | V28: =U28-'[1]Агентства и службы сайты 19'!V22 -> -1 | W28: 19 | X28: 0.8421052632
A29: Ростуризм | B29: https://www.russiatourism.ru/ | C29: 1 | D29: 1 | E29: 1 | F29: 1 | G29: 1 | H29: 1 | I29: 1 | J29: 1 | K29: 1 | L29: 0 | M29: 1 | N29: 1 | O29: 1 | P29: 1 | Q29: 1 | R29: 1 | S29: 1 | T29: 1 | U29: 17 | V29: =U29-'[1]Агентства и службы сайты 19'!V37 -> 0 | W29: 19 | X29: 0.8947368421
A30: СВР России | B30: http://svr.gov.ru/ | C30: 1 | D30: 1 | E30: 1 | F30: 1 | G30: 1 | H30: 0 | I30: 1 | J30: 1 | K30: 1 | L30: 0 | M30: 1 | N30: 0 | O30: 1 | P30: 0 | Q30: 1 | R30: 1 | S30: 0 | T30: 2 | U30: 14 | V30: =U30-'[1]Агентства и службы сайты 19'!V39 -> 4 | W30: 19 | X30: 0.7368421053
A31: ФСБ России | B31: http://www.fsb.ru/ | C31: 1 | D31: 1 | E31: 1 | F31: 1 | G31: 1 | H31: 0 | I31: 0 | J31: 1 | K31: 0 | L31: 1 | M31: 0 | N31: 0 | O31: 1 | P31: 0 | Q31: 1 | R31: 0 | S31: 0 | T31: 1 | U31: 10 | V31: =U31-'[1]Агентства и службы сайты 19'!V45 -> -3 | W31: 19 | X31: 0.5263157895
A32: Росгвардия | B32: https://www.rosgvard.ru/ | C32: 1 | D32: 1 | E32: 1 | F32: 1 | G32: 1 | H32: 1 | I32: 1 | J32: 1 | K32: 1 | L32: 1 | M32: 0 | N32: 1 | O32: 1 | P32: 1 | Q32: 1 | R32: 1 | S32: 1 | T32: 1 | U32: 17 | V32: =U32-'[1]Агентства и службы сайты 19'!V11 -> 1 | W32: 19 | X32: 0.8947368421
A33: ФСО России | B33: http://www.fso.gov.ru/ | C33: 1 | D33: 1 | E33: 1 | F33: 1 | G33: 0 | H33: 0 | I33: 0 | J33: 1 | K33: 1 | L33: 0 | M33: 1 | N33: 1 | O33: 1 | P33: 0 | Q33: 1 | R33: 0 | S33: 0 | T33: 1 | U33: 11 | V33: =U33-'[1]Агентства и службы сайты 19'!V48 -> -1 | W33: 19 | X33: 0.5789473684
A34: Росфинмониторинг | B34: http://www.fedsfm.ru/ | C34: 1 | D34: 1 | E34: 1 | F34: 1 | G34: 1 | H34: 0 | I34: 1 | J34: 1 | K34: 1 | L34: 1 | M34: 1 | N34: 0 | O34: 1 | P34: 1 | Q34: 1 | R34: 1 | S34: 1 | T34: 1 | U34: 16 | V34: =U34-'[1]Агентства и службы сайты 19'!V38 -> 1 | W34: 19 | X34: 0.8421052632
A35: Росархив | B35: http://archives.ru/ | C35: 1 | D35: 1 | E35: 1 | F35: 1 | G35: 1 | H35: 1 | I35: 1 | J35: 1 | K35: 1 | L35: 0 | M35: 1 | N35: 1 | O35: 1 | P35: 1 | Q35: 1 | R35: 1 | S35: 1 | T35: 1 | U35: 17 | V35: =U35-'[1]Агентства и службы сайты 19'!V9 -> 0 | W35: 19 | X35: 0.8947368421
A36: Главное управление специальных программ Президента Российской Федерации (ГУСП) | B36: http://www.gusp.gov.ru/ | C36: 0 | D36: 1 | E36: 1 | F36: 1 | G36: 0 | H36: 0 | I36: 1 | J36: 1 | K36: 1 | L36: 0 | M36: 1 | N36: 0 | O36: 1 | P36: 1 | Q36: 1 | R36: 1 | S36: 0 | T36: 2 | U36: 13 | V36: =U36-'[1]Агентства и службы сайты 19'!V2 -> 2 | W36: 19 | X36: 0.6842105263
A37: Управление делами Президента Российской Федерации | B37: https://udprf.ru/ | C37: 1 | D37: 1 | E37: 1 | F37: 1 | G37: 1 | H37: 0 | I37: 1 | J37: 1 | K37: 1 | L37: 0 | M37: 1 | N37: 1 | O37: 1 | P37: 1 | Q37: 1 | R37: 0 | S37: 0 | T37: 2 | U37: 15 | V37: =U37-'[1]Агентства и службы сайты 19'!V40 -> 1 | W37: 19 | X37: 0.7894736842
A38: Государственная фельдъегерская служба Российской Федерации (ГФС России) | B38: https://gfs.gov.ru/ | C38: 0 | D38: 1 | E38: 1 | F38: 1 | G38: 1 | H38: 1 | I38: 1 | J38: 1 | K38: 1 | L38: 1 | M38: 1 | N38: 0 | O38: 1 | P38: 1 | Q38: 1 | R38: 1 | S38: 0 | T38: 2 | U38: 16 | V38: 2 | W38: 19 | X38: 0.8421052632
A39: ФАС России | B39: https://fas.gov.ru/ | C39: 1 | D39: 1 | E39: 1 | F39: 1 | G39: 1 | H39: 0 | I39: 1 | J39: 1 | K39: 1 | L39: 1 | M39: 0 | N39: 1 | O39: 1 | P39: 1 | Q39: 1 | R39: 1 | S39: 1 | T39: 1 | U39: 16 | V39: =U39-'[1]Агентства и службы сайты 19'!V42 -> 0 | W39: 19 | X39: 0.8421052632
A40: Росреестр | B40: https://rosreestr.ru/site/ | C40: 1 | D40: 1 | E40: 1 | F40: 1 | G40: 1 | H40: 0 | I40: 1 | J40: 1 | K40: 1 | L40: 1 | M40: 1 | N40: 1 | O40: 1 | P40: 1 | Q40: 1 | R40: 1 | S40: 1 | T40: 1 | U40: 17 | V40: =U40-'[1]Агентства и службы сайты 19'!V26 -> 0 | W40: 19 | X40: 0.8947368421
A41: Роспотребнадзор | B41: https://www.rospotrebnadzor.ru/ | C41: 1 | D41: 1 | E41: 0 | F41: 1 | G41: 1 | H41: 1 | I41: 1 | J41: 1 | K41: 1 | L41: 1 | M41: 1 | N41: 1 | O41: 1 | P41: 1 | Q41: 1 | R41: 1 | S41: 1 | T41: 1 | U41: 17 | V41: =U41-'[1]Агентства и службы сайты 19'!V24 -> 1 | W41: 19 | X41: 0.8947368421
A42: Росздравнадзор | B42: https://www.roszdravnadzor.ru/ | C42: 1 | D42: 1 | E42: 1 | F42: 1 | G42: 1 | H42: 1 | I42: 1 | J42: 1 | K42: 1 | L42: 1 | M42: 1 | N42: 1 | O42: 1 | P42: 1 | Q42: 1 | R42: 1 | S42: 1 | T42: 1 | U42: 18 | V42: =U42-'[1]Агентства и службы сайты 19'!V14 -> 0 | W42: 19 | X42: 0.9473684211
A43: Рособрнадзор | B43: http://obrnadzor.gov.ru/ru/ | C43: 1 | D43: 1 | E43: 1 | F43: 1 | G43: 1 | H43: 0 | I43: 1 | J43: 1 | K43: 1 | L43: 1 | M43: 1 | N43: 1 | O43: 1 | P43: 1 | Q43: 1 | R43: 1 | S43: 1 | T43: 1 | U43: 17 | V43: =U43-'[1]Агентства и службы сайты 19'!V21 -> 0 | W43: 19 | X43: 0.8947368421
A44: Ростехнадзор | B44: http://www.gosnadzor.ru/ | C44: 1 | D44: 1 | E44: 1 | F44: 1 | G44: 1 | H44: 0 | I44: 1 | J44: 1 | K44: 1 | L44: 1 | M44: 0 | N44: 1 | O44: 1 | P44: 1 | Q44: 1 | R44: 1 | S44: 1 | T44: 2 | U44: 17 | V44: =U44-'[1]Агентства и службы сайты 19'!V34 -> 1 | W44: 19 | X44: 0.8947368421
A45: Росрезерв | B45: https://www.rosreserv.ru/ | C45: 1 | D45: 1 | E45: 1 | F45: 1 | G45: 1 | H45: 1 | I45: 1 | J45: 1 | K45: 1 | L45: 1 | M45: 1 | N45: 1 | O45: 1 | P45: 1 | Q45: 1 | R45: 1 | S45: 1 | T45: 1 | U45: 18 | V45: =U45-'[1]Агентства и службы сайты 19'!V27 -> 0 | W45: 19 | X45: 0.9473684211
A46: ФМБА России | B46: http://fmbaros.ru/ | C46: 1 | D46: 1 | E46: 1 | F46: 1 | G46: 1 | H46: 0 | I46: 1 | J46: 1 | K46: 1 | L46: 1 | M46: 1 | N46: 1 | O46: 1 | P46: 0 | Q46: 1 | R46: 1 | S46: 1 | T46: 0 | U46: 15 | V46: =U46-'[1]Агентства и службы сайты 19'!V43 -> -2 | W46: 19 | X46: 0.7894736842
A47: Росмолодёжь | B47: https://fadm.gov.ru/ | C47: 1 | D47: 1 | E47: 1 | F47: 1 | G47: 1 | H47: 1 | I47: 1 | J47: 1 | K47: 1 | L47: 1 | M47: 1 | N47: 1 | O47: 1 | P47: 1 | Q47: 1 | R47: 1 | S47: 1 | T47: 1 | U47: 18 | V47: =U47-'[1]Агентства и службы сайты 19'!V18 -> 2 | W47: 19 | X47: 0.9473684211
A48: ФАДН России | B48: http://fadn.gov.ru/ | C48: 1 | D48: 1 | E48: 1 | F48: 1 | G48: 1 | H48: 1 | I48: 1 | J48: 1 | K48: 1 | L48: 0 | M48: 1 | N48: 0 | O48: 1 | P48: 1 | Q48: 1 | R48: 1 | S48: 1 | T48: 1 | U48: 16 | V48: =U48-'[1]Агентства и службы сайты 19'!V41 -> 1 | W48: 19 | X48: 0.8421052632
A49: ФСВТС России | B49: http://www.fsvts.gov.ru/ | C49: 1 | D49: 1 | E49: 1 | F49: 1 | G49: 1 | H49: 0 | I49: 1 | J49: 1 | K49: 1 | L49: 0 | M49: 1 | N49: 0 | O49: 1 | P49: 1 | Q49: 0 | R49: 1 | S49: 1 | T49: 1 | U49: 14 | V49: =U49-'[1]Агентства и службы сайты 19'!V46 -> -2 | W49: 19 | X49: 0.7368421053
A50: ФСТЭК России | B50: https://fstec.ru/ | C50: 0 | D50: 1 | E50: 1 | F50: 1 | G50: 1 | H50: 1 | I50: 1 | J50: 1 | K50: 1 | L50: 1 | M50: 1 | N50: 1 | O50: 1 | P50: 1 | Q50: 1 | R50: 1 | S50: 1 | T50: 1 | U50: 17 | V50: =U50-'[1]Агентства и службы сайты 19'!V50 -> 1 | W50: 19 | X50: 0.8947368421
A51: ФСИН России | B51: http://www.fsin.su/ | C51: 1 | D51: 1 | E51: 1 | F51: 1 | G51: 1 | H51: 0 | I51: 1 | J51: 1 | K51: 1 | L51: 1 | M51: 1 | N51: 1 | O51: 1 | P51: 1 | Q51: 0 | R51: 1 | S51: 1 | T51: 1 | U51: 16 | V51: =U51-'[1]Агентства и службы сайты 19'!V47 -> 0 | W51: 19 | X51: 0.8421052632
A52: Федеральная служба судебных приставов (ФССП России) | B52: http://fssprus.ru/ | C52: 1 | D52: 1 | E52: 0 | F52: 1 | G52: 1 | H52: 1 | I52: 1 | J52: 1 | K52: 1 | L52: 1 | M52: 0 | N52: 1 | O52: 1 | P52: 1 | Q52: 1 | R52: 1 | S52: 1 | T52: 2 | U52: 17 | V52: =U52-'[1]Агентства и службы сайты 19'!V49 -> 0 | W52: 19 | X52: 0.8947368421
U57: =AVERAGE(U2:U52) -> 16.25490196

Sheet Министертва 8 ФЗ
A1: Организация | B1: Срок ответа соблюден по закону | C1: Сколько вопросов раскрыто в ответе | D1: Корректность идентификации запроса | E1: Ведется ли раздельная статистика по поступившим запросам и обращениям? | F1: Итог | G1: max | H1: Rate (tot/max)
A2: МВД России | B2: 1 | C2: 2 | D2: 0 | E2: 0 | F2: =B2+C2+D2+E2 -> 3 | G2: 6 | H2: =F2/6 -> 0.5
A3: МИД России | B3: 0 | C3: 0 | D3: 0 | E3: 0 | F3: 0 | G3: 6 | H3: =F3/6 -> 0
A4: МЧС России | B4: 1 | C4: 3 | D4: 0 | E4: 0 | F4: 4 | G4: 6 | H4: 0.6666666667
A5: Минобороны России | B5: 1 | C5: 1 | D5: 0 | E5: 0 | F5: 2 | G5: 6 | H5: 0.3333333333
A6: Минюст России | B6: 0 | C6: 0 | D6: 0 | E6: 0 | F6: 0 | G6: 6 | H6: 0
A7: Минздрав России | B7: 0 | C7: 0 | D7: 0 | E7: 0 | F7: 0 | G7: 6 | H7: 0
A8: Минкультуры России | B8: 1 | C8: 2 | D8: 0 | E8: 0 | F8: 3 | G8: 6 | H8: 0.5
A9: Минобрнауки России | B9: 1 | C9: 1 | D9: 0 | E9: 0 | F9: 2 | G9: 6 | H9: 0.3333333333
A10: Минприроды России | B10: 0 | C10: 2 | D10: 0 | E10: 1 | F10: 3 | G10: 6 | H10: 0.5
A11: Минпромторг России | B11: 0 | C11: 0 | D11: 0 | E11: 0 | F11: 0 | G11: 6 | H11: 0
A12: Минпросвещения России | B12: 1 | C12: 2 | D12: 0 | E12: 1 | F12: 4 | G12: 6 | H12: 0.6666666667
A13: Минвостокразвития России | B13: 0 | C13: 0 | D13: 0 | E13: 0 | F13: 0 | G13: 6 | H13: 0
A14: Минсельхоз России | B14: 0 | C14: 0 | D14: 0 | E14: 0 | F14: 0 | G14: 6 | H14: 0
A15: Минспорт России | B15: 0 | C15: 0 | D15: 0 | E15: 0 | F15: 0 | G15: 6 | H15: 0
A16: Минстрой России | B16: 1 | C16: 3 | D16: 0 | E16: 0 | F16: 4 | G16: 6 | H16: 0.6666666667
A17: Минтранс России | B17: 1 | C17: 3 | D17: 0 | E17: 0 | F17: 4 | G17: 6 | H17: 0.6666666667
A18: Минтруд России | B18: 0 | C18: 0 | D18: 0 | E18: 0 | F18: 0 | G18: 6 | H18: 0
A19: Минфин России | B19: 1 | C19: 3 | D19: 0 | E19: 1 | F19: 5 | G19: 6 | H19: 0.8333333333
A20: Минкомсвязи России | B20: 0 | C20: 0 | D20: 0 | E20: 0 | F20: 0 | G20: 6 | H20: 0
A21: Минэкономразвития России | B21: 0 | C21: 3 | D21: 1 | E21: 0 | F21: 4 | G21: 6 | H21: 0.6666666667
A22: Минэнерго России | B22: 1 | C22: 3 | D22: 1 | E22: 1 | F22: 6 | G22: 6 | H22: 1

Sheet Агент. Служ. Упр. 8 ФЗ
A1: Организация | B1: Срок ответа соблюден по закону | C1: Сколько вопросов раскрыто в ответе | D1: Корректность идентификации запроса | E1: Ведется ли раздельная статистика по поступившим запросам и обращениям? | F1: Итог | G1: max | H1: Rate (tot/max)
A2: Росгидромет | B2: 1 | C2: 3 | D2: 0 | E2: 0 | F2: =(B2+C2+D2+E2) -> 4 | G2: 6 | H2: =F2/6 -> 0.6666666667
A3: Росприроднадзор | B3: 0 | C3: 0 | D3: 0 | E3: 0 | F3: 0 | G3: 6 | H3: =F3/6 -> 0
A4: Росводресурсы | B4: 0 | C4: 0 | D4: 0 | E4: 0 | F4: 0 | G4: 6 | H4: 0
A5: Рослесхоз | B5: 0 | C5: 0 | D5: 0 | E5: 0 | F5: 0 | G5: 6 | H5: 0
A6: Роснедра | B6: 0 | C6: 0 | D6: 0 | E6: 0 | F6: 0 | G6: 6 | H6: 0
A7: Россотрудничество | B7: 0 | C7: 0 | D7: 0 | E7: 0 | F7: 0 | G7: 6 | H7: 0
A8: Росстандарт | B8: 0 | C8: 0 | D8: 0 | E8: 0 | F8: 0 | G8: 6 | H8: 0
A9: Россельхознадзор | B9: 1 | C9: 3 | D9: 0 | E9: 1 | F9: =(B9+C9+D9+E9) -> 5 | G9: 6 | H9: 0.8333333333
A10: Росрыболовство | B10: 0 | C10: 0 | D10: 0 | E10: 0 | F10: 0 | G10: 6 | H10: 0
A11: Ространснадзор | B11: 1 | C11: 3 | D11: 0 | E11: 1 | F11: =(B11+C11+D11+E11) -> 5 | G11: 6 | H11: 0.8333333333
A12: Росавиация | B12: 0 | C12: 0 | D12: 0 | E12: 0 | F12: 0 | G12: 6 | H12: 0
A13: Росавтодор | B13: 1 | C13: 3 | D13: 0 | E13: 0 | F13: =(B13+C13+D13+E13) -> 4 | G13: 6 | H13: 0.6666666667
A14: Росжелдор | B14: 0 | C14: 0 | D14: 0 | E14: 0 | F14: 0 | G14: 6 | H14: 0
A15: Росморречфлот | B15: 1 | C15: 1 | D15: 0 | E15: 0 | F15: =(B15+C15+D15+E15) -> 2 | G15: 6 | H15: 0.3333333333
A16: Роструд | B16: 0 | C16: 0 | D16: 0 | E16: 0 | F16: 0 | G16: 6 | H16: 0
A17: ФНС России | B17: 0 | C17: 3 | D17: 0 | E17: 0 | F17: =(B17+C17+D17+E17) -> 3 | G17: 6 | H17: 0.5
A18: Федеральная пробирная палата | B18: - | C18: - | D18: - | E18: - | F18: - | G18: 6 | H18: -
A19: Росалкогольрегулирование | B19: 1 | C19: 2 | D19: 0 | E19: 0 | F19: =(B19+C19+D19+E19) -> 3 | G19: 6 | H19: 0.5
A20: ФТС России | B20: 0 | C20: 2 | D20: 0 | E20: 1 | F20: =(B20+C20+D20+E20) -> 3 | G20: 6 | H20: 0.5
A21: Росказна (Казначейство РФ) | B21: 0 | C21: 0 | D21: 0 | E21: 0 | F21: 0 | G21: 6 | H21: 0
A22: Росимущество | B22: 0 | C22: 0 | D22: 0 | E22: 0 | F22: 0 | G22: 6 | H22: 0
A23: Роскомнадзор | B23: 1 | C23: 3 | D23: 0 | E23: 1 | F23: =(B23+C23+D23+E23) -> 5 | G23: 6 | H23: 0.8333333333
A24: Роспечать | B24: 0 | C24: 0 | D24: 0 | E24: 0 | F24: 0 | G24: 6 | H24: 0
A25: Россвязь | B25: 1 | C25: 2 | D25: 0 | E25: 0 | F25: =(B25+C25+D25+E25) -> 3 | G25: 6 | H25: 0.5
A26: Росаккредитация | B26: 1 | C26: 2 | D26: 0 | E26: 0 | F26: =(B26+C26+D26+E26) -> 3 | G26: 6 | H26: 0.5
A27: Росстат | B27: 1 | C27: 3 | D27: 1 | E27: 1 | F27: =(B27+C27+D27+E27) -> 6 | G27: 6 | H27: 1
A28: Роспатент | B28: 0 | C28: 0 | D28: 0 | E28: 0 | F28: 0 | G28: 6 | H28: 0
A29: Ростуризм | B29: 0 | C29: 0 | D29: 0 | E29: 0 | F29: 0 | G29: 6 | H29: 0
A30: СВР России | B30: - | C30: - | D30: - | E30: - | F30: - | G30: 6 | H30: -
A31: ФСБ России | B31: - | C31: - | D31: - | E31: - | F31: - | G31: 6 | H31: -
A32: Росгвардия | B32: - | C32: - | D32: - | E32: - | F32: - | G32: 6 | H32: -
A33: ФСО России | B33: - | C33: - | D33: - | E33: - | F33: - | G33: 6 | H33: -
A34: Росфинмониторинг | B34: 1 | C34: 3 | D34: 0 | E34: 1 | F34: =(B34+C34+D34+E34) -> 5 | G34: 6 | H34: 0.8333333333
A35: Росархив | B35: 0 | C35: 0 | D35: 0 | E35: 0 | F35: 0 | G35: 6 | H35: 0
A36: ГУСП России | B36: 0 | C36: 2 | D36: 1 | E36: 1 | F36: 4 | G36: 6 | H36: 0.6666666667
A37: Управделами Президента | B37: 0 | C37: 0 | D37: 0 | E37: 0 | F37: 0 | G37: 6 | H37: 0
A38: ГФС России | B38: 0 | C38: 0 | D38: 0 | E38: 0 | F38: 0 | G38: 6 | H38: 0
A39: ФАС России | B39: 0 | C39: 0 | D39: 0 | E39: 0 | F39: 0 | G39: 6 | H39: 0
A40: Росреестр | B40: 1 | C40: 3 | D40: 0 | E40: 0 | F40: =(B40+C40+D40+E40) -> 4 | G40: 6 | H40: 0.6666666667
A41: Роспотребнадзор | B41: 0 | C41: 0 | D41: 0 | E41: 0 | F41: 0 | G41: 6 | H41: 0
A42: Росздравнадзор | B42: 0 | C42: 0 | D42: 0 | E42: 0 | F42: 0 | G42: 6 | H42: 0
A43: Рособрнадзор | B43: 1 | C43: 3 | D43: 1 | E43: 1 | F43: =(B43+C43+D43+E43) -> 6 | G43: 6 | H43: 1
A44: Ростехнадзор | B44: 0 | C44: 0 | D44: 0 | E44: 0 | F44: 0 | G44: 6 | H44: 0
A45: Росрезерв | B45: 1 | C45: 3 | D45: 0 | E45: 1 | F45: =(B45+C45+D45+E45) -> 5 | G45: 6 | H45: 0.8333333333
A46: ФМБА России | B46: 0 | C46: 0 | D46: 0 | E46: 0 | F46: 0 | G46: 6 | H46: 0
A47: Росмолодежь | B47: 1 | C47: 3 | D47: 1 | E47: 0 | F47: =(B47+C47+D47+E47) -> 5 | G47: 6 | H47: 0.8333333333
A48: ФАДН России | B48: 0 | C48: 0 | D48: 0 | E48: 0 | F48: 0 | G48: 6 | H48: 0
A49: ФСВТС России | B49: 0 | C49: 0 | D49: 0 | E49: 0 | F49: 0 | G49: 6 | H49: 0
A50: ФСТЭК России | B50: 0 | C50: 0 | D50: 0 | E50: 0 | F50: 0 | G50: 6 | H50: 0
A51: ФСИН России | B51: - | C51: - | D51: - | E51: - | F51: - | G51: 6 | H51: -
A52: ФССП России | B52: 0 | C52: 2 | D52: 1 | E52: 1 | F52: =(B52+C52+D52+E52) -> 4 | G52: 6 | H52: 0.6666666667

Sheet Министертва Жур
A1: Министерство | B1: has_press_contacts 1 | C1: has_person_contacts 1 | D1: aplly 1 | E1: channels 1 | F1: deadlines 1 | G1: content 1 | H1: has_press_contacts 2 | I1: has_person_contacts 2 | J1: aplly 2 | K1: channels 2 | L1: deadlines 2 | M1: content 2 | N1: has_press_contacts 3 | O1: has_person_contacts 3 | P1: aplly 3 | Q1: channels 3 | R1: deadlines 3 | S1: content 3 | T1: Total | U1: Average | V1: max | W1: rate (av/max)
A2: МВД России | B2: 1 | C2: 0 | D2: 1 | E2: 2 | F2: 0 | G2: 0 | H2: 1 | I2: 1 | J2: 0 | K2: 0 | L2: 0 | M2: 0 | N2: 1 | O2: 1 | P2: 1 | Q2: 2 | R2: 0 | S2: 1 | T2: =SUM(B2:S2) -> 12 | U2: =T2/3 -> 4 | V2: 8 | W2: =U2/8 -> 0.5
A3: МЧС России | B3: 1 | C3: 1 | D3: 0 | E3: 1 | F3: 1 | G3: 2 | H3: 1 | I3: 1 | J3: 0 | K3: 1 | L3: 1 | M3: 2 | N3: 1 | O3: 1 | P3: 1 | Q3: 1 | R3: 0 | S3: 2 | T3: =SUM(B3:S3) -> 18 | U3: =T3/3 -> 6 | V3: 8 | W3: =U3/8 -> 0.75
A4: МИД России | B4: 1 | C4: 0 | D4: 0 | E4: 0 | F4: 0 | G4: 0 | H4: 1 | I4: 1 | J4: 0 | K4: 0 | L4: 0 | M4: 0 | N4: 1 | O4: 1 | P4: 1 | Q4: 1 | R4: 1 | S4: 1 | T4: 9 | U4: 3 | V4: 8 | W4: 0.375
A5: Минобороны России | B5: 1 | C5: 1 | D5: 0 | E5: 1 | F5: 0 | G5: 2 | H5: 1 | I5: 1 | J5: 0 | K5: 0 | L5: 0 | M5: 0 | N5: 1 | O5: 1 | P5: 0 | Q5: 0 | R5: 0 | S5: 0 | T5: 9 | U5: 3 | V5: 8 | W5: 0.375
A6: Минюст России | B6: 1 | C6: 0 | D6: 1 | E6: 2 | F6: 1 | G6: 2 | H6: 1 | I6: 0 | J6: 0 | K6: 2 | L6: 1 | M6: 2 | N6: 1 | O6: 0 | P6: 0 | Q6: 1 | R6: 0 | S6: 2 | T6: 17 | U6: 5.666666667 | V6: 8 | W6: 0.7083333333
A7: Минздрав России | B7: 1 | C7: 1 | D7: 0 | E7: 0 | F7: 0 | G7: 0 | H7: 1 | I7: 1 | J7: 0 | K7: 0 | L7: 0 | M7: 0 | N7: 1 | O7: 0 | P7: 1 | Q7: 0 | R7: 0 | S7: 0 | T7: 6 | U7: 2 | V7: 8 | W7: 0.25
A8: Минкультуры России | B8: 1 | C8: 0 | D8: 1 | E8: 2 | F8: 0 | G8: 0 | H8: 1 | I8: 1 | J8: 0 | K8: 0 | L8: 0 | M8: 0 | N8: 1 | O8: 1 | P8: 1 | Q8: 2 | R8: 1 | S8: 2 | T8: 14 | U8: 4.666666667 | V8: 8 | W8: 0.5833333333
A9: Минобрнауки России | B9: 1 | C9: 1 | D9: 0 | E9: 0 | F9: 0 | G9: 0 | H9: 1 | I9: 1 | J9: 0 | K9: 0 | L9: 0 | M9: 0 | N9: 1 | O9: 0 | P9: 0 | Q9: 1 | R9: 0 | S9: 1 | T9: 7 | U9: 2.333333333 | V9: 8 | W9: 0.2916666667
A10: Минприроды России | B10: 1 | C10: 1 | D10: 0 | E10: 1 | F10: 1 | G10: 2 | H10: 1 | I10: 1 | J10: 0 | K10: 1 | L10: 0 | M10: 0 | N10: 1 | O10: 1 | P10: 1 | Q10: 1 | R10: 0 | S10: 2 | T10: 15 | U10: 5 | V10: 8 | W10: 0.625
A11: Минпромторг России | B11: 1 | C11: 1 | D11: 0 | E11: 0 | F11: 0 | G11: 0 | H11: 1 | I11: 1 | J11: 0 | K11: 0 | L11: 0 | M11: 0 | N11: 1 | O11: 1 | P11: 1 | Q11: 1 | R11: 1 | S11: 2 | T11: 11 | U11: 3.666666667 | V11: 8 | W11: 0.4583333333
A12: Минпросвещения России | B12: 1 | C12: 1 | D12: 0 | E12: 0 | F12: 0 | G12: 0 | H12: 1 | I12: 0 | J12: 0 | K12: 0 | L12: 0 | M12: 0 | N12: 1 | O12: 1 | P12: 1 | Q12: 1 | R12: 0 | S12: 1 | T12: 8 | U12: 2.666666667 | V12: 8 | W12: 0.3333333333
A13: Минвостокразвития России | B13: 1 | C13: 1 | D13: 0 | E13: 0 | F13: 0 | G13: 0 | H13: 1 | I13: 1 | J13: 0 | K13: 0 | L13: 0 | M13: 0 | N13: 1 | O13: 1 | P13: 1 | Q13: 2 | R13: 1 | S13: 2 | T13: 12 | U13: 4 | V13: 8 | W13: 0.5
A14: Минсельхоз России | B14: 1 | C14: 0 | D14: 0 | E14: 0 | F14: 0 | G14: 0 | H14: 1 | I14: 0 | J14: 0 | K14: 1 | L14: 1 | M14: 2 | N14: 1 | O14: 0 | P14: 0 | Q14: 0 | R14: 0 | S14: 0 | T14: 7 | U14: 2.333333333 | V14: 8 | W14: 0.2916666667
A15: Минспорт России | B15: 1 | C15: 0 | D15: 0 | E15: 0 | F15: 0 | G15: 0 | H15: 1 | I15: 1 | J15: 0 | K15: 0 | L15: 0 | M15: 0 | N15: 1 | O15: 1 | P15: 0 | Q15: 1 | R15: 0 | S15: 2 | T15: 8 | U15: 2.666666667 | V15: 8 | W15: 0.3333333333
A16: Минстрой России | B16: 1 | C16: 1 | D16: 0 | E16: 0 | F16: 0 | G16: 0 | H16: 1 | I16: 1 | J16: 0 | K16: 0 | L16: 0 | M16: 0 | N16: 1 | O16: 1 | P16: 0 | Q16: 0 | R16: 0 | T16: 6 | U16: 2 | V16: 8 | W16: 0.25
A17: Минтранс России | B17: 1 | C17: 1 | D17: 0 | E17: 1 | F17: 1 | G17: 0 | H17: 1 | I17: 1 | J17: 0 | K17: 1 | L17: 1 | M17: 1 | N17: 1 | O17: 1 | P17: 1 | Q17: 1 | R17: 1 | S17: 1 | T17: 15 | U17: 5 | V17: 8 | W17: 0.625
A18: Минтруд России | B18: 1 | C18: 0 | D18: 0 | E18: 0 | F18: 0 | G18: 0 | H18: 1 | I18: 0 | J18: 0 | K18: 1 | L18: 1 | M18: 2 | N18: 1 | O18: 0 | P18: 1 | Q18: 2 | R18: 1 | S18: 2 | T18: 13 | U18: 4.333333333 | V18: 8 | W18: 0.5416666667
A19: Минфин России | B19: 1 | C19: 0 | D19: 1 | E19: 0 | F19: 0 | G19: 0 | H19: 0 | I19: 0 | J19: 0 | K19: 0 | L19: 0 | M19: 0 | N19: 1 | O19: 0 | P19: 1 | Q19: 1 | R19: 0 | S19: 2 | T19: 7 | U19: 2.333333333 | V19: 8 | W19: 0.2916666667
A20: Минкомсвязь России | B20: 1 | C20: 1 | D20: 0 | E20: 0 | F20: 0 | G20: 0 | H20: 1 | I20: 0 | J20: 0 | K20: 0 | L20: 0 | M20: 0 | N20: 1 | O20: 0 | P20: 1 | Q20: 1 | R20: 1 | S20: 1 | T20: 8 | U20: 2.666666667 | V20: 8 | W20: 0.3333333333
A21: Минэкономразвития России | B21: 1 | C21: 0 | D21: 0 | E21: 0 | F21: 0 | G21: 0 | H21: 1 | I21: 0 | J21: 0 | K21: 0 | L21: 0 | M21: 0 | N21: 1 | O21: 0 | P21: 0 | Q21: 0 | R21: 0 | S21: 0 | T21: 3 | U21: 1 | V21: 8 | W21: 0.125
A22: Минэнерго России | B22: 1 | C22: 1 | D22: 0 | E22: 0 | F22: 0 | G22: 0 | H22: 1 | I22: 1 | J22: 1 | K22: 1 | L22: 1 | M22: 2 | N22: 1 | O22: 1 | P22: 1 | Q22: 1 | R22: 1 | S22: 2 | T22: 16 | U22: 5.333333333 | V22: 8 | W22: 0.6666666667

Sheet Агент. Служ. Упр. Жур
A1: Ведомство | B1: has_press_contacts 1 | C1: has_person_contacts 1 | D1: aplly 1 | E1: channels 1 | F1: deadlines 1 | G1: content 1 | H1: has_press_contacts 2 | I1: has_person_contacts 2 | J1: aplly 2 | K1: channels 2 | L1: deadlines 2 | M1: content 2 | N1: has_press_contacts 3 | O1: has_person_contacts 3 | P1: aplly 3 | Q1: channels 3 | R1: deadlines 3 | S1: content 3 | T1: Total | U1: Average | V1: max | W1: rate (av/max)
A2: Росгидромет | B2: 1 | C2: 1 | D2: 0 | E2: 0 | F2: 0 | G2: 0 | H2: 1 | I2: 1 | J2: 1 | K2: 1 | L2: 0 | M2: 0 | N2: 1 | O2: 1 | P2: 0 | Q2: 0 | R2: 0 | S2: 0 | T2: =SUM(B2:S2) -> 8 | U2: =T2/3 -> 2.666666667 | V2: 8 | W2: =U2/8 -> 0.3333333333
A3: Росприроднадзор | B3: 1 | C3: 0 | D3: 0 | E3: 1 | F3: 1 | G3: 2 | H3: 1 | I3: 0 | J3: 0 | K3: 0 | L3: 0 | M3: 0 | N3: 1 | O3: 0 | P3: 1 | Q3: 1 | R3: 1 | S3: 1 | T3: =SUM(B3:S3) -> 11 | U3: =T3/3 -> 3.666666667 | V3: 8 | W3: =U3/8 -> 0.4583333333
A4: Росводресурсы | B4: 1 | C4: 0 | D4: 0 | E4: 1 | F4: 0 | G4: 2 | H4: 0 | I4: 0 | J4: 0 | K4: 1 | L4: 0 | M4: 1 | N4: 0 | O4: 0 | P4: 1 | Q4: 1 | R4: 0 | S4: 1 | T4: 9 | U4: 3 | V4: 8 | W4: 0.375
A5: Рослесхоз | B5: 1 | C5: 1 | D5: 0 | E5: 0 | F5: 0 | G5: 0 | H5: 1 | I5: 1 | J5: 0 | K5: 1 | L5: 1 | M5: 2 | N5: 1 | O5: 1 | P5: 0 | Q5: 0 | R5: 0 | S5: 0 | T5: 10 | U5: 3.333333333 | V5: 8 | W5: 0.4166666667
A6: Роснедра | B6: 1 | C6: 1 | D6: 0 | E6: 0 | F6: 0 | G6: 0 | H6: 0 | I6: 0 | J6: 0 | K6: 1 | L6: 0 | M6: 2 | N6: 0 | O6: 0 | P6: 0 | Q6: 0 | R6: 0 | S6: 0 | T6: 5 | U6: 1.666666667 | V6: 8 | W6: 0.2083333333
A7: Россотрудничество | B7: 1 | C7: 0 | D7: 0 | E7: 0 | F7: 0 | G7: 0 | H7: 1 | I7: 0 | J7: 0 | K7: 0 | L7: 0 | M7: 0 | N7: 1 | O7: 0 | P7: 0 | Q7: 0 | R7: 0 | S7: 0 | T7: 3 | U7: 1 | V7: 8 | W7: 0.125
A8: Росстандарт | B8: 1 | C8: 0 | D8: 0 | E8: 0 | F8: 0 | G8: 0 | H8: 1 | I8: 0 | J8: 0 | K8: 0 | L8: 0 | M8: 0 | N8: 1 | O8: 0 | P8: 1 | Q8: 1 | R8: 1 | S8: 2 | T8: 8 | U8: 2.666666667 | V8: 8 | W8: 0.3333333333
A9: Россельхознадзор | B9: 0 | C9: 0 | D9: 0 | E9: 1 | F9: 1 | G9: 2 | H9: 0 | I9: 0 | J9: 0 | K9: 0 | L9: 0 | M9: 0 | N9: 0 | O9: 0 | P9: 0 | Q9: 1 | R9: 0 | S9: 2 | T9: 7 | U9: 2.333333333 | V9: 8 | W9: 0.2916666667
A10: Росрыболовство | B10: 1 | C10: 0 | D10: 0 | E10: 0 | F10: 0 | G10: 0 | H10: 0 | I10: 0 | J10: 0 | K10: 0 | L10: 0 | M10: 0 | N10: 1 | O10: 0 | P10: 0 | Q10: 0 | R10: 0 | S10: 0 | T10: 2 | U10: 0.6666666667 | V10: 8 | W10: 0.08333333333
A11: Ространснадзор | B11: 1 | C11: 0 | D11: 0 | E11: 0 | F11: 0 | G11: 0 | H11: 1 | I11: 1 | J11: 0 | K11: 1 | L11: 1 | M11: 2 | N11: 1 | O11: 1 | P11: 0 | Q11: 1 | R11: 1 | S11: 2 | T11: 13 | U11: 4.333333333 | V11: 8 | W11: 0.5416666667
A12: Росавиация | B12: 1 | C12: 0 | D12: 0 | E12: 0 | F12: 0 | G12: 0 | H12: 0 | I12: 0 | J12: 0 | K12: 0 | L12: 0 | M12: 0 | N12: 1 | O12: 1 | P12: 1 | Q12: 1 | R12: 0 | S12: 2 | T12: 7 | U12: 2.333333333 | V12: 8 | W12: 0.2916666667
A13: Росавтодор | B13: 1 | C13: 1 | D13: 1 | E13: 0 | F13: 0 | G13: 0 | H13: 1 | I13: 0 | J13: 1 | K13: 1 | L13: 1 | M13: 2 | N13: 1 | O13: 1 | P13: 0 | Q13: 1 | R13: 1 | S13: 2 | T13: 15 | U13: 5 | V13: 8 | W13: 0.625
A14: Росжелдор | B14: 0 | C14: 0 | D14: 0 | E14: 0 | F14: 0 | G14: 0 | H14: 0 | I14: 0 | J14: 0 | K14: 0 | L14: 0 | M14: 0 | N14: 0 | O14: 0 | P14: 0 | Q14: 1 | R14: 0 | S14: 1 | T14: 2 | U14: 0.6666666667 | V14: 8 | W14: 0.08333333333
A15: Росморречфлот | B15: 1 | C15: 0 | D15: 0 | E15: 1 | F15: 1 | G15: 2 | H15: 0 | I15: 0 | J15: 0 | K15: 1 | L15: 0 | M15: 2 | N15: 1 | O15: 1 | P15: 0 | Q15: 0 | R15: 0 | S15: 0 | T15: 10 | U15: 3.333333333 | V15: 8 | W15: 0.4166666667
A16: Роструд | B16: 1 | C16: 1 | D16: 0 | E16: 0 | F16: 0 | G16: 0 | H16: 1 | I16: 1 | J16: 0 | K16: 0 | L16: 0 | M16: 0 | N16: 1 | O16: 0 | P16: 1 | Q16: 1 | R16: 0 | S16: 1 | T16: 8 | U16: 2.666666667 | V16: 8 | W16: 0.3333333333
A17: ФНС России | B17: 1 | C17: 0 | D17: 0 | E17: 0 | F17: 0 | G17: 0 | H17: 1 | I17: 0 | J17: 0 | K17: 0 | L17: 0 | M17: 0 | N17: 1 | O17: 0 | P17: 1 | Q17: 1 | R17: 1 | S17: 1 | T17: 7 | U17: 2.333333333 | V17: 8 | W17: 0.2916666667
A18: Федеральная пробирная палата | B18: 1 | C18: 0 | D18: 0 | E18: 1 | F18: 1 | G18: 0 | H18: 1 | I18: 0 | J18: 0 | K18: 1 | L18: 1 | M18: 2 | N18: 1 | O18: 0 | P18: 0 | Q18: 0 | R18: 0 | S18: 0 | T18: 9 | U18: 3 | V18: 8 | W18: 0.375
A19: Росалкогольрегулирование | B19: 1 | C19: 0 | D19: 0 | E19: 1 | F19: 1 | G19: 1 | H19: 1 | I19: 0 | J19: 0 | K19: 1 | L19: 1 | M19: 2 | N19: 1 | O19: 0 | P19: 1 | Q19: 1 | R19: 1 | S19: 0 | T19: 13 | U19: 4.333333333 | V19: 8 | W19: 0.5416666667
A20: ФТС России | B20: 1 | C20: 1 | D20: 0 | E20: 0 | F20: 0 | G20: 0 | H20: 1 | I20: 1 | J20: 0 | K20: 1 | L20: 0 | M20: 1 | N20: 1 | O20: 1 | P20: 0 | Q20: 0 | R20: 0 | S20: 0 | T20: 8 | U20: 2.666666667 | V20: 8 | W20: 0.3333333333
A21: Казначейство России | B21: 1 | C21: 1 | D21: 0 | E21: 0 | F21: 0 | G21: 0 | H21: 1 | I21: 1 | J21: 0 | K21: 0 | L21: 0 | M21: 0 | N21: 1 | O21: 1 | P21: 1 | Q21: 1 | R21: 0 | S21: 2 | T21: 10 | U21: 3.333333333 | V21: 8 | W21: 0.4166666667
A22: Росимущество | B22: 1 | C22: 1 | D22: 0 | E22: 0 | F22: 0 | G22: 0 | H22: 1 | I22: 1 | J22: 0 | K22: 1 | L22: 1 | M22: 1 | N22: 1 | O22: 1 | P22: 1 | Q22: 1 | R22: 1 | S22: 1 | T22: 13 | U22: 4.333333333 | V22: 8 | W22: 0.5416666667
A23: Роскомнадзор | B23: 0 | C23: 0 | D23: 0 | E23: 1 | F23: 1 | G23: 2 | H23: 1 | I23: 0 | J23: 0 | K23: 1 | L23: 1 | M23: 1 | N23: 1 | O23: 0 | P23: 0 | Q23: 0 | R23: 0 | S23: 0 | T23: 9 | U23: 3 | V23: 8 | W23: 0.375
A24: Роспечать | B24: 1 | C24: 1 | D24: 1 | E24: 1 | F24: 1 | G24: 2 | H24: 1 | I24: 1 | J24: 0 | K24: 0 | L24: 0 | M24: 0 | N24: 1 | O24: 1 | P24: 0 | Q24: 1 | R24: 0 | S24: 2 | T24: 14 | U24: 4.666666667 | V24: 8 | W24: 0.5833333333
A25: Россвязь | B25: 0 | C25: 0 | D25: 0 | E25: 1 | F25: 1 | G25: 2 | H25: 1 | I25: 0 | J25: 0 | K25: 1 | L25: 1 | M25: 2 | N25: 1 | O25: 0 | P25: 0 | Q25: 0 | R25: 0 | S25: 0 | T25: 10 | U25: 3.333333333 | V25: 8 | W25: 0.4166666667
A26: Росаккредитация | B26: 1 | C26: 0 | D26: 0 | E26: 1 | F26: 1 | G26: 2 | H26: 1 | I26: 0 | J26: 0 | K26: 1 | L26: 1 | M26: 2 | N26: 1 | O26: 0 | P26: 1 | Q26: 1 | R26: 0 | S26: 2 | T26: 15 | U26: 5 | V26: 8 | W26: 0.625
A27: Росстат | B27: 1 | C27: 1 | D27: 0 | E27: 1 | F27: 1 | G27: 2 | H27: 1 | I27: 1 | J27: 0 | K27: 1 | L27: 1 | M27: 2 | N27: 1 | O27: 1 | P27: 0 | Q27: 1 | R27: 1 | S27: 1 | T27: 17 | U27: 5.666666667 | V27: 8 | W27: 0.7083333333
A28: Роспатент | B28: 0 | C28: 0 | D28: 1 | E28: 0 | F28: 0 | G28: 0 | H28: 0 | I28: 0 | J28: 1 | K28: 1 | L28: 1 | M28: 1 | N28: 1 | O28: 0 | P28: 0 | Q28: 0 | R28: 0 | S28: 0 | T28: 6 | U28: 2 | V28: 8 | W28: 0.25
A29: Ростуризм | B29: 1 | C29: 0 | D29: 0 | E29: 0 | F29: 0 | G29: 0 | H29: 1 | I29: 0 | J29: 0 | K29: 0 | L29: 0 | M29: 0 | N29: 1 | O29: 0 | P29: 0 | Q29: 0 | R29: 0 | S29: 0 | T29: 3 | U29: 1 | V29: 8 | W29: 0.125
A30: СВР России | B30: 1 | C30: 1 | D30: 0 | E30: 1 | F30: 1 | G30: 0 | H30: 1 | I30: 1 | J30: 0 | K30: 0 | L30: 0 | M30: 0 | N30: 1 | O30: 0 | P30: 1 | Q30: 1 | R30: 0 | S30: 2 | T30: 11 | U30: 3.666666667 | V30: 8 | W30: 0.4583333333
A31: ФСБ России | B31: 1 | C31: 0 | D31: 0 | E31: 1 | F31: 0 | G31: 1 | H31: 1 | I31: 0 | J31: 0 | K31: 1 | L31: 0 | M31: 2 | N31: 1 | O31: 0 | P31: 0 | Q31: 1 | R31: 1 | S31: 1 | T31: 11 | U31: 3.666666667 | V31: 8 | W31: 0.4583333333
A32: Росгвардия | B32: 1 | C32: 0 | D32: 0 | E32: 1 | F32: 1 | G32: 2 | H32: 1 | I32: 0 | J32: 1 | K32: 2 | L32: 0 | M32: 0 | N32: 1 | O32: 1 | P32: 1 | Q32: 1 | R32: 1 | S32: 0 | T32: 14 | U32: 4.666666667 | V32: 8 | W32: 0.5833333333
A33: ФСО России | B33: 1 | C33: 0 | D33: 0 | E33: 1 | F33: 1 | G33: 1 | H33: 1 | I33: 1 | J33: 0 | K33: 0 | L33: 0 | M33: 0 | N33: 1 | O33: 1 | P33: 1 | Q33: 1 | R33: 1 | S33: 1 | T33: 12 | U33: 4 | V33: 8 | W33: 0.5
A34: Росфинмониторинг | B34: 1 | C34: 1 | D34: 0 | E34: 0 | F34: 0 | G34: 0 | H34: 1 | I34: 1 | J34: 0 | K34: 0 | L34: 0 | M34: 0 | N34: 1 | O34: 1 | P34: 0 | Q34: 0 | R34: 0 | S34: 0 | T34: 6 | U34: =T34/3 -> 2 | V34: 8 | W34: 0.25
A35: Росархив | B35: 0 | C35: 0 | D35: 0 | E35: 1 | F35: 1 | G35: 2 | H35: 0 | I35: 1 | J35: 0 | K35: 0 | L35: 0 | M35: 0 | N35: 1 | O35: 1 | P35: 0 | Q35: 0 | R35: 0 | S35: 0 | T35: 7 | U35: 2.333333333 | V35: 8 | W35: 0.2916666667
A36: Главное управление специальных программ Президента Российской Федерации (ГУСП) | B36: 0 | C36: 0 | D36: 0 | E36: 1 | F36: 0 | G36: 2 | H36: 0 | I36: 0 | J36: 0 | K36: 0 | L36: 0 | M36: 0 | N36: 0 | O36: 0 | P36: 1 | Q36: 1 | R36: 0 | S36: 1 | T36: 6 | U36: 2 | V36: 8 | W36: 0.25
A37: Управление делами Президента Российской Федерации | B37: 1 | C37: 1 | D37: 0 | E37: 0 | F37: 0 | G37: 0 | H37: 1 | I37: 1 | J37: 0 | K37: 1 | L37: 1 | M37: 1 | N37: 1 | O37: 1 | P37: 0 | Q37: 0 | R37: 0 | S37: 0 | T37: 9 | U37: 3 | V37: 8 | W37: 0.375
A38: Государственная фельдъегерская служба Российской Федерации (ГФС России) | B38: 0 | C38: 0 | D38: 0 | E38: 1 | F38: 1 | G38: 2 | H38: 0 | I38: 0 | J38: 0 | K38: 1 | L38: 1 | M38: 2 | N38: 0 | O38: 0 | P38: 0 | Q38: 0 | R38: 0 | S38: 0 | T38: 8 | U38: 2.666666667 | V38: 8 | W38: 0.3333333333
A39: ФАС России | B39: 1 | C39: 1 | D39: 0 | E39: 0 | F39: 0 | G39: 0 | H39: 1 | I39: 1 | J39: 0 | K39: 0 | L39: 0 | M39: 0 | N39: 1 | O39: 1 | P39: 1 | Q39: 1 | R39: 1 | S39: 1 | T39: 10 | U39: 3.333333333 | V39: 8 | W39: 0.4166666667
A40: Росреестр | B40: 1 | C40: 0 | D40: 0 | E40: 0 | F40: 0 | G40: 0 | H40: 1 | I40: 0 | J40: 0 | K40: 0 | L40: 0 | M40: 0 | N40: 1 | O40: 0 | P40: 0 | Q40: 1 | R40: 0 | S40: 1 | T40: 5 | U40: 1.666666667 | V40: 8 | W40: 0.2083333333
A41: Роспотребнадзор | B41: 0 | C41: 0 | D41: 0 | E41: 0 | F41: 0 | G41: 0 | H41: 1 | I41: 0 | J41: 0 | K41: 0 | L41: 0 | M41: 0 | N41: 1 | O41: 0 | P41: 0 | Q41: 0 | R41: 0 | S41: 0 | T41: 2 | U41: 0.6666666667 | V41: 8 | W41: 0.08333333333
A42: Росздравнадзор | B42: 1 | C42: 1 | D42: 0 | E42: 0 | F42: 0 | G42: 0 | H42: 1 | I42: 1 | J42: 0 | K42: 0 | L42: 0 | M42: 0 | N42: 1 | O42: 1 | P42: 0 | Q42: 0 | R42: 0 | S42: 0 | T42: 6 | U42: 2 | V42: 8 | W42: 0.25
A43: Рособрнадзор | B43: 1 | C43: 1 | D43: 0 | E43: 0 | F43: 0 | G43: 0 | H43: 1 | I43: 0 | J43: 0 | K43: 1 | L43: 1 | M43: 2 | N43: 1 | O43: 0 | P43: 1 | Q43: 1 | R43: 1 | S43: 2 | T43: 13 | U43: 4.333333333 | V43: 8 | W43: 0.5416666667
A44: Ростехнадзор | B44: 1 | C44: 0 | D44: 0 | E44: 1 | F44: 1 | G44: 2 | H44: 1 | I44: 0 | J44: 0 | K44: 0 | L44: 0 | M44: 0 | N44: 1 | O44: 0 | P44: 0 | Q44: 0 | R44: 0 | S44: 0 | T44: 7 | U44: 2.333333333 | V44: 8 | W44: 0.2916666667
A45: Росрезерв | B45: 1 | C45: 1 | D45: 0 | E45: 1 | F45: 0 | G45: 2 | H45: 1 | I45: 1 | J45: 0 | K45: 0 | L45: 0 | M45: 0 | N45: 1 | O45: 0 | P45: 1 | Q45: 1 | R45: 1 | S45: 2 | T45: 13 | U45: 4.333333333 | V45: 8 | W45: 0.5416666667
A46: ФМБА России | B46: 1 | C46: 1 | D46: 0 | E46: 1 | F46: 1 | G46: 2 | H46: 1 | I46: 1 | J46: 0 | K46: 0 | L46: 0 | M46: 0 | N46: 1 | O46: 0 | P46: 0 | Q46: 1 | R46: 1 | S46: 2 | T46: 13 | U46: 4.333333333 | V46: 8 | W46: 0.5416666667
A47: Росмолодёжь | B47: 1 | C47: 0 | D47: 0 | E47: 1 | F47: 1 | G47: 2 | H47: 1 | I47: 0 | J47: 0 | K47: 1 | L47: 1 | M47: 2 | N47: 1 | O47: 0 | P47: 1 | Q47: 1 | R47: 1 | S47: 2 | T47: 16 | U47: 5.333333333 | V47: 8 | W47: 0.6666666667
A48: ФАДН России | B48: 1 | C48: 0 | D48: 0 | E48: 1 | F48: 0 | G48: 2 | H48: 1 | I48: 0 | J48: 0 | K48: 0 | L48: 0 | M48: 0 | N48: 1 | O48: 0 | P48: 0 | Q48: 0 | R48: 0 | S48: 0 | T48: 6 | U48: 2 | V48: 8 | W48: 0.25
A49: ФСВТС России | B49: 1 | C49: 0 | D49: 0 | E49: 0 | F49: 0 | G49: 0 | H49: 0 | I49: 0 | J49: 0 | K49: 0 | L49: 0 | M49: 0 | N49: 1 | O49: 0 | P49: 1 | Q49: 1 | R49: 1 | S49: 2 | T49: 7 | U49: 2.333333333 | V49: 8 | W49: 0.2916666667
A50: ФСТЭК России | B50: 0 | C50: 0 | D50: 1 | E50: 2 | F50: 0 | G50: 2 | H50: 0 | I50: 0 | J50: 0 | K50: 0 | L50: 0 | M50: 0 | N50: 0 | O50: 0 | P50: 0 | Q50: 1 | R50: 0 | S50: 1 | T50: 7 | U50: 2.333333333 | V50: 8 | W50: 0.2916666667
A51: ФСИН России | B51: 1 | C51: 0 | D51: 0 | E51: 0 | F51: 0 | G51: 0 | H51: 1 | I51: 1 | J51: 0 | K51: 0 | L51: 0 | M51: 0 | N51: 1 | O51: 1 | P51: 0 | Q51: 0 | R51: 0 | S51: 0 | T51: 5 | U51: 1.666666667 | V51: 8 | W51: 0.2083333333
A52: Федеральная служба судебных приставов (ФССП России) | B52: 1 | C52: 0 | D52: 1 | E52: 2 | F52: 1 | G52: 2 | H52: 1 | I52: 1 | J52: 0 | K52: 1 | L52: 1 | M52: 2 | N52: 1 | O52: 0 | P52: 0 | Q52: 1 | R52: 1 | S52: 2 | T52: 18 | U52: 6 | V52: 8 | W52: 0.75
